bitfinex/quotes_SOLUSD_20251128
["timestamp","ask_amount","ask_price","bid_price","bid_amount"]
[1764321798208,0.2,142.14,142.12,25.47760808]
[1764321798498,0.2,142.14,142.13,2.13243674]
[1764321799919,0.2,142.14,142.13,25.47711302]
[1764321800701,0.2,142.14,142.13,2.13243674]
[1764321800702,0.92,142.14,142.13,2.13243674]
[1764321802608,0.92,142.14,142.13,3.32831979]
[1764321804402,0.92,142.14,142.13,10.36413207]
[1764321806715,0.2,142.14,142.13,10.36413207]
[1764321808221,0.2,142.14,142.13,26.67299607]
[1764321814523,0.2,142.16,142.15,19.63718379]
[1764321815519,0.2,142.16,142.15,26.67200616]
[1764321816420,0.2,142.17,142.15,30.00032595]
[1764321816618,0.2,142.19,142.18,16.308864]
[1764321816820,0.2,142.19,142.18,3.32831979]
[1764321817127,0.2,142.19,142.18,19.63718379]
[1764321817504,0.2,142.19,142.18,26.67052181]
[1764321817706,0.92,142.19,142.18,26.67052181]
[1764321818210,0.2,142.19,142.18,26.67052181]
[1764321821834,1e-08,142.19,142.18,26.67052181]
[1764321824748,0.71000001,142.19,142.18,26.67052181]
[1764321832847,1e-08,142.19,142.18,26.67052181]
[1764321833941,0.2,142.21,142.2,19.63718379]
[1764321834525,0.2,142.22,142.21,16.308864]
[1764321834727,0.2,142.22,142.21,3.32831979]
[1764321834926,0.2,142.22,142.21,19.63718379]
[1764321835326,0.2,142.22,142.21,26.66903808]
[1764321835923,0.91,142.24,142.21,44.24867382]
[1764321836124,0.2,142.24,142.23,6.65663958]
[1764321836539,0.91,142.25,142.23,6.65663958]
[1764321836740,0.91,142.25,142.21,76.07962552]
[1764321836741,0.2,142.25,142.24,6.65663958]
[1764321837140,0.2,142.25,142.24,22.96550358]
[1764321837443,0.2,142.25,142.24,29.99587478]
[1764321837947,0.91,142.25,142.24,29.99587478]
[1764321839446,0.91,142.25,142.24,26.66755499]
[1764321839635,0.91,142.25,142.24,29.99587478]
[1764321843046,0.91,142.25,142.24,3.32831979]
[1764321844927,0.91,142.25,142.18,7.03284359]
[1764321844928,7.93995732,142.25,142.18,7.03284359]
[1764321845130,0.71,142.24,142.21,3.32831979]
[1764321846035,0.71,142.24,142.22,3.32831979]
[1764321846754,0.71,142.24,142.21,3.32831979]
[1764321847250,0.71,142.24,142.21,10.36016628]
[1764321847824,0.71,142.24,142.21,3.32831979]
[1764321848030,0.28432314,142.23,142.21,3.32831979]
[1764321848238,3.12,142.22,142.21,3.32831979]
[1764321848439,3.83,142.22,142.21,3.32831979]
[1764321848740,3.83,142.22,142.21,10.36017408]
[1764321849333,3.83,142.22,142.21,3.32831979]
[1764321850354,0.28432314,142.21,142.18,3.32831979]
[1764321850532,0.28432314,142.21,142.17,7.03383273]
[1764321850533,0.94432314,142.21,142.17,7.03383273]
[1764321850734,0.94432314,142.21,142.15,3.32831979]
[1764321850735,8.80994492,142.2,142.15,3.32831979]
[1764321850930,9.46994492,142.2,142.15,3.32831979]
[1764321851235,0.28432314,142.16,142.12,10.36449905]
[1764321851434,7.03383273,142.17,142.05,1.99999999]
[1764321851435,0.28432314,142.14,142.09,3.32831979]
[1764321851736,0.28432314,142.14,142.07,16.308864]
[1764321851958,0.66,142.13,142.1,3.32831979]
[1764321853538,0.66,142.13,142.1,10.3654001]
[1764321854247,0.66,142.13,142.11,3.32831979]
[1764321855932,0.66,142.13,142.1,10.3654001]
[1764321856766,0.66,142.13,142.1,3.32831979]
[1764321857058,0.66,142.13,142.1,10.36550858]
[1764321857676,0.28432314,142.12,142.09,3.32831979]
[1764321857839,3.12,142.11,142.08,3.32831979]
[1764321858038,3.78,142.11,142.08,3.32831979]
[1764321858239,0.66,142.1,142.08,3.32831979]
[1764321858446,0.66,142.1,142.09,3.32831979]
[1764321859379,0.94432314,142.1,142.07,7.03864072]
[1764321859546,0.94432314,142.1,142.07,10.36696051]
[1764321859747,0.66,142.09,142.07,10.36696051]
[1764321860292,0.66,142.09,142.07,3.32831979]
[1764321860985,0.66,142.09,142.08,3.32831979]
[1764321861269,0.66,142.09,142.04,3.32831979]
[1764321861566,7.69795987,142.09,142.07,3.32831979]
[1764321861785,9.09426806,142.08,142.05,3.32831979]
[1764321861966,9.09426806,142.08,142.02,3.32831979]
[1764321861967,9.09426806,142.06,142.02,3.32831979]
[1764321862171,9.09426806,142.06,142.01,3.32831979]
[1764321862367,0.66,142.05,142.02,3.32831979]
[1764321862675,0.66,142.05,142.02,2.13389775]
[1764321864080,0.66,142.05,142.01,7.04149979]
[1764321864081,0.66,142.05,142.04,2.13389775]
[1764321865180,7.69977472,142.05,142.03,2.13389775]
[1764321865400,0.28432314,142.04,142.03,2.13389775]
[1764321865598,0.94432314,142.04,142.03,2.13389775]
[1764321866215,7.98459348,142.04,142.0,2.23389775]
[1764321866392,12.58994492,142.03,142.0,2.23389775]
[1764321866586,12.58994492,142.03,142.01,2.13389775]
[1764321866902,0.66,142.02,142.01,2.13389775]
[1764321868206,7.70126179,142.02,142.01,2.13389775]
[1764321868794,0.66,142.02,142.01,2.13389775]
[1764321868999,0.94432314,142.02,142.0,0.1]
[1764321869301,0.94432314,142.02,142.01,2.13389775]
[1764321869503,0.28432314,142.02,142.01,2.13389775]
[1764321869994,0.94432314,142.02,142.01,2.13389775]
[1764321871911,3.12,142.03,142.01,2.13389775]
[1764321872406,0.28432314,142.02,142.01,2.13389775]
[1764321872705,0.94432314,142.02,142.01,2.13389775]
[1764321873910,3.12,142.03,142.01,2.13389775]
[1764321874087,3.78,142.03,142.02,2.13389775]
[1764321874587,3.12,142.03,142.02,2.13389775]
[1764321875001,3.12,142.03,142.02,9.17515954]
[1764321875807,0.14216157,142.02,142.0,0.1]
[1764321875985,0.94432314,142.02,142.0,2.23389775]
[1764321876525,0.66,142.01,142.0,0.1]
[1764321876808,0.66,142.01,141.96,16.308864]
[1764321876809,9.09426806,142.0,141.96,2.13389775]
[1764321876995,9.09426806,142.0,141.97,2.13389775]
[1764321876996,0.28432314,141.98,141.97,2.13389775]
[1764321877190,3.78,141.99,141.97,2.13389775]
[1764321877390,0.66,141.98,141.97,2.13389775]
[1764321877590,0.66,141.98,141.93,7.34565797]
[1764321877906,0.66,141.98,141.97,2.13389775]
[1764321878210,3.12,141.99,141.97,2.13389775]
[1764321878506,3.12,141.99,141.98,2.13389775]
[1764321878708,3.12,141.99,141.97,7.0435953]
[1764321880507,3.12,141.99,141.98,5.71769307]
[1764321880892,3.79,141.99,141.98,5.71769307]
[1764321881209,3.79,141.99,141.98,12.76093859]
[1764321882314,3.79,141.99,141.98,5.71769307]
[1764321882996,4.07432314,141.99,141.98,5.71769307]
[1764321883585,11.11707262,141.99,141.98,5.71769307]
[1764321883895,0.28432314,141.98,141.97,5.71769307]
[1764321884201,0.95432314,141.98,141.96,5.71769307]
[1764321884611,0.28432314,141.98,141.97,5.71769307]
[1764321885093,7.99756866,141.98,141.97,5.71769307]
[1764321886725,0.95432314,141.98,141.97,5.71769307]
[1764321890294,3.12,141.99,141.97,12.76134015]
[1764321890594,4.07432314,141.99,141.98,5.71769307]
[1764321892121,4.07432314,141.99,141.98,5.21769307]
[1764321893018,3.40432314,141.99,141.98,5.21769307]
[1764321893401,3.12,141.99,141.98,12.26093859]
[1764321894312,3.12,141.99,141.98,5.21769307]
[1764321894516,3.79,141.99,141.98,5.21769307]
[1764321894896,3.79,141.99,141.98,12.26093859]
[1764321895100,3.79,141.99,141.97,7.04350883]
[1764321895301,3.79,141.99,141.98,5.71769307]
[1764321895732,3.79,141.99,141.98,12.76093859]
[1764321899612,3.79,141.99,141.98,12.64193859]
[1764321900130,3.79,141.99,141.98,5.59869307]
[1764321900504,11.11707262,141.99,141.98,2.13480086]
[1764321900711,19.92701754,141.99,141.98,2.13480086]
[1764321901713,19.92701754,141.99,141.97,2.13480086]
[1764321901911,0.67,141.98,141.97,2.13480086]
[1764321902338,3.40432314,141.99,141.97,2.13480086]
[1764321902633,3.12,141.99,141.98,2.13480086]
[1764321904608,3.12,141.99,141.96,7.04423781]
[1764321904609,3.79,141.99,141.96,7.04423781]
[1764321904809,3.79,141.99,141.98,2.13480086]
[1764321905607,3.12,141.99,141.98,2.13480086]
[1764321906008,3.79,141.99,141.98,2.13480086]
[1764321906736,3.79,141.99,141.96,15.583384]
[1764321906941,3.79,141.99,141.98,2.13480086]
[1764321909026,3.12,141.99,141.98,9.37804638]
[1764321909234,8.80994492,142.04,141.98,45.42982505]
[1764321909235,3.12,142.02,141.98,45.42982505]
[1764321909426,3.12,142.03,142.01,4.26960172]
[1764321909746,3.12,142.03,142.02,4.26960172]
[1764321910541,0.14216157,142.02,141.96,8.53920344]
[1764321910844,0.94432314,142.02,142.01,2.13480086]
[1764321911052,0.66,142.02,142.01,2.13480086]
[1764321911228,0.94432314,142.02,142.01,2.13480086]
[1764321911428,0.28432314,142.02,142.01,2.13480086]
[1764321911643,0.94432314,142.02,142.01,2.13480086]
[1764321913244,0.28432314,142.02,142.01,2.13480086]
[1764321914324,1.00432314,142.02,142.01,2.13480086]
[1764321916331,8.04558493,142.02,142.01,2.13480086]
[1764321916946,16.85552985,142.02,142.0,2.13480086]
[1764321917145,0.72,142.01,142.0,2.13480086]
[1764321917743,9.81426806,142.01,142.0,2.13480086]
[1764321917936,9.81426806,142.01,141.97,7.04352754]
[1764321918131,0.28432314,141.99,141.97,7.04352754]
[1764321918543,1.00432314,141.99,141.97,7.04352754]
[1764321919029,1.00432314,141.99,141.96,8.53920344]
[1764321919227,1.00432314,141.99,141.96,7.04412935]
[1764321919431,1.00432314,141.99,141.98,2.13480086]
[1764321920233,8.04717953,141.99,141.93,23.4544954]
[1764321920442,0.72,141.98,141.97,2.13480086]
[1764321921042,0.72,141.98,141.93,24.75994831]
[1764321921241,0.72,141.98,141.97,2.13480086]
[1764321921447,3.84,141.98,141.97,2.13480086]
[1764321923645,0.28432314,141.97,141.93,7.1456314]
[1764321923847,1.00432314,141.97,141.96,2.13480086]
[1764321924576,1.00432314,141.97,141.96,3.33698815]
[1764321924735,0.28432314,141.97,141.96,3.33698815]
[1764321925061,1.00432314,141.97,141.96,3.33698815]
[1764321925764,1.00432314,141.97,141.96,10.38122596]
[1764321926156,1.00432314,141.97,141.96,7.04423781]
[1764321926357,1.00432314,141.97,141.96,10.38122596]
[1764321927884,1.00432314,141.97,141.93,17.91431691]
[1764321927885,8.80994492,141.96,141.94,3.33698815]
[1764321928064,0.28432314,141.94,141.93,0.1]
[1764321928238,0.28432314,141.94,141.93,3.43698815]
[1764321928442,1.00432314,141.94,141.93,3.43698815]
[1764321929038,0.28432314,141.94,141.93,10.48271491]
[1764321936052,0.28432314,141.94,141.93,7.14572676]
[1764321936262,0.28432314,141.94,141.93,10.48271491]
[1764321938770,3.12,141.96,141.93,13.81970306]
[1764321938972,3.40432314,141.96,141.95,6.6739763]
[1764321939557,3.40432314,141.96,141.95,13.71871036]
[1764321940175,3.12,141.96,141.95,13.91871036]
[1764321940377,0.86216157,141.98,141.95,13.71871036]
[1764321940675,1.00432314,141.98,141.97,3.33698815]
[1764321940878,0.86216157,141.98,141.97,3.33698815]
[1764321941054,1.00432314,141.98,141.97,3.33698815]
[1764321943378,0.28432314,141.98,141.97,10.38072978]
[1764321943761,0.94432314,141.98,141.97,10.38072978]
[1764321944679,0.28432314,141.98,141.97,10.38072978]
[1764321945284,0.94432314,141.98,141.97,10.38072978]
[1764321945478,0.94432314,141.98,141.97,3.33698815]
[1764321947383,0.28432314,141.98,141.97,10.38072978]
[1764321947680,0.94432314,141.98,141.97,10.38072978]
[1764321957767,3.12,141.99,141.97,10.38072978]
[1764321957964,4.06432314,141.99,141.98,3.33698815]
[1764321958189,4.06432314,141.99,141.98,10.38023367]
[1764321959098,3.12,141.99,141.98,10.38023367]
[1764321959389,3.78,142.02,141.98,28.18834748]
[1764321959589,4.06432314,142.02,142.01,3.33698815]
[1764321959786,3.40432314,142.02,142.01,3.33698815]
[1764321960091,3.12,142.02,142.01,3.53698815]
[1764321960301,3.78,142.05,142.01,28.18313982]
[1764321960477,3.12,142.05,142.04,3.33698815]
[1764321960989,3.78,142.05,142.04,3.33698815]
[1764321961597,19.62971964,142.05,142.03,3.33698815]
[1764321961905,0.94432314,142.04,142.03,3.33698815]
[1764321963197,7.98459348,142.04,142.03,3.33698815]
[1764321963381,0.94432314,142.04,142.03,3.33698815]
[1764321963777,7.98459348,142.04,142.03,3.33698815]
[1764321964374,16.7945384,142.04,142.03,3.33698815]
[1764321968880,9.75426806,142.04,142.03,3.33698815]
[1764321969086,0.94432314,142.04,142.03,3.33698815]
[1764321969785,16.79467328,142.04,141.98,40.9597616]
[1764321969992,16.13467328,142.04,142.03,3.33698815]
[1764321970509,16.82467328,142.04,141.98,41.1597616]
[1764321970802,16.13467328,142.04,142.03,3.33698815]
[1764321971304,16.82467328,142.04,142.03,3.33698815]
[1764321972205,9.78426806,142.04,142.03,3.33698815]
[1764321972991,16.8245384,142.04,142.03,3.33698815]
[1764321973588,16.8245384,142.04,141.99,7.04269308]
[1764321973798,16.1345384,142.04,142.03,3.33698815]
[1764321974313,16.8245384,142.04,142.03,3.33698815]
[1764321978206,9.78426806,142.04,142.03,3.33698815]
[1764321980189,0.97432314,142.04,142.03,3.33698815]
[1764321985821,0.28432314,142.04,142.03,10.37775418]
[1764321986207,3.12,142.05,142.03,13.91474233]
[1764321986405,3.26216157,142.05,142.04,3.33698815]
[1764321986616,3.26216157,142.05,142.04,2.13259313]
[1764321987012,3.40432314,142.05,142.04,2.13259313]
[1764321988206,0.28432314,142.04,142.0,16.308864]
[1764321988406,0.98432314,142.04,141.97,0.2]
[1764321988700,0.98432314,142.04,141.96,7.04379547]
[1764321988701,0.28432314,142.02,141.99,2.13259313]
[1764321988914,0.28432314,142.02,141.96,15.77416799]
[1764321988915,3.12,142.01,142.0,2.13259313]
[1764321989106,3.82,142.01,142.0,2.13259313]
[1764321990918,3.82,142.01,141.99,2.13259313]
[1764321990919,0.28432314,142.0,141.99,2.13259313]
[1764321991308,0.98432314,142.0,141.99,2.13259313]
[1764321991830,0.28432314,142.0,141.99,2.13259313]
[1764321993327,16.83652309,142.0,141.96,2.13259313]
[1764321993503,34.44215689,142.0,141.95,2.13259313]
[1764321993709,0.7,141.99,141.97,2.13259313]
[1764321993925,3.12,141.98,141.97,2.13259313]
[1764321994313,0.28432314,141.97,141.96,2.13259313]
[1764321994516,0.28432314,141.97,141.94,7.04501444]
[1764321994713,0.28432314,141.97,141.96,2.13259313]
[1764321997228,0.98432314,141.97,141.95,2.13259313]
[1764321997610,0.7,141.96,141.93,0.1]
[1764321997943,0.28432314,141.94,141.93,0.1]
[1764321998310,0.98432314,141.94,141.93,2.23259313]
[1764321998509,0.28432314,141.94,141.93,9.27831989]
[1764321998825,0.28432314,141.94,141.93,2.23259313]
[1764321999738,0.98432314,141.94,141.93,2.23259313]
[1764321999934,0.28432314,141.94,141.93,2.23259313]
[1764322001128,3.12,141.95,141.93,9.47831989]
[1764322001321,3.40432314,141.95,141.94,2.13259313]
[1764322002526,4.06432314,141.95,141.94,2.13259313]
[1764322003733,0.28432314,141.94,141.93,0.1]
[1764322004046,0.28432314,141.94,141.93,2.23259313]
[1764322004927,0.28432314,141.94,141.93,9.27831989]
[1764322006158,0.28432314,141.94,141.93,2.23259313]
[1764322007939,0.28432314,141.94,141.93,9.27831989]
[1764322011249,3.12,141.95,141.93,9.47831989]
[1764322011452,0.66,141.98,141.94,2.33259313]
[1764322011656,3.12,141.98,141.97,2.13259313]
[1764322012563,0.66,142.0,141.97,2.13259313]
[1764322012741,0.66,142.0,141.99,2.13259313]
[1764322013467,0.80216157,142.0,141.99,2.13259313]
[1764322014050,0.94432314,142.0,141.99,2.13259313]
[1764322015758,0.94432314,142.0,141.98,2.13259313]
[1764322015759,7.98657666,142.0,141.98,2.13259313]
[1764322015939,0.66,141.99,141.98,2.13259313]
[1764322023559,7.70274948,141.99,141.98,2.13259313]
[1764322023761,16.79701754,141.99,141.97,2.13259313]
[1764322023945,3.78,141.98,141.97,2.13259313]
[1764322024469,10.82324552,141.98,141.97,2.13259313]
[1764322024675,0.28432314,141.97,141.96,2.13259313]
[1764322024872,0.94432314,141.97,141.96,2.13259313]
[1764322027879,0.28432314,141.97,141.96,2.13259313]
[1764322030280,3.12,141.98,141.96,9.17683094]
[1764322030460,0.14216157,141.97,141.96,7.04423781]
[1764322031282,0.28432314,141.97,141.96,7.04423781]
[1764322031674,3.12,141.98,141.96,9.17683094]
[1764322031875,3.40432314,141.98,141.97,2.13259313]
[1764322032174,3.40432314,141.98,141.97,9.17633476]
[1764322035267,4.07432314,141.98,141.97,9.17633476]
[1764322036784,3.40432314,141.98,141.97,9.17633476]
[1764322037172,0.28432314,141.98,141.97,9.37633476]
[1764322037685,0.28432314,141.98,141.97,9.17633476]
[1764322038587,3.79,142.0,141.97,9.37633476]
[1764322038763,3.40432314,142.0,141.99,2.13259313]
[1764322038966,3.12,142.0,141.99,9.17534261]
[1764322040179,17.59984017,142.05,141.99,9.17534261]
[1764322040180,0.67,142.05,141.99,26.98221633]
[1764322040360,0.67,142.05,142.04,2.13259313]
[1764322040565,0.95432314,142.05,142.04,2.13259313]
[1764322041166,0.95432314,142.05,142.02,7.04110323]
[1764322041480,7.32409786,142.05,142.04,2.13259313]
[1764322041881,7.99409786,142.05,142.04,2.13259313]
[1764322042593,7.99409786,142.05,142.03,2.13259313]
[1764322042894,0.67,142.04,142.03,2.13259313]
[1764322046302,0.95432314,142.05,142.03,2.13259313]
[1764322046493,0.95432314,142.05,142.04,2.13259313]
[1764322046689,0.28432314,142.05,142.04,2.13259313]
[1764322047283,0.95432314,142.05,142.04,2.13259313]
[1764322047694,7.99409786,142.05,142.04,2.13259313]
[1764322048412,7.99409786,142.05,141.99,0.2]
[1764322048587,7.99409786,142.05,142.04,3.33367098]
[1764322048588,7.32409786,142.05,142.04,3.33367098]
[1764322049182,7.99409786,142.05,142.02,3.33367098]
[1764322049404,0.67,142.04,142.02,3.33367098]
[1764322049719,3.40432314,142.03,142.02,3.33367098]
[1764322050213,4.07432314,142.03,142.02,3.33367098]
[1764322061200,0.28432314,142.02,141.97,34.11774279]
[1764322061409,0.28432314,142.02,142.01,3.33367098]
[1764322061801,0.98432314,142.02,142.01,3.33367098]
[1764322067123,8.80994492,142.01,142.0,3.33367098]
[1764322067325,0.28432314,142.0,141.99,3.33367098]
[1764322067529,4.08432314,142.0,141.99,3.33367098]
[1764322070405,3.38432314,142.0,141.99,3.33367098]
[1764322073525,4.08432314,142.0,141.99,3.33367098]
[1764322074532,3.1,142.0,141.99,10.37642046]
[1764322074729,3.1,142.02,141.99,10.57642046]
[1764322075033,3.38432314,142.02,142.01,3.33367098]
[1764322075709,4.08432314,142.02,142.01,3.33367098]
[1764322077405,11.12562273,142.02,141.96,20.94360504]
[1764322077610,4.08432314,142.02,142.01,3.33367098]
[1764322078838,7.0420246,142.04,142.01,10.5754286]
[1764322079034,0.7,142.06,142.03,3.33367098]
[1764322079035,3.1,142.05,142.03,3.33367098]
[1764322079338,3.38432314,142.05,142.04,3.33367098]
[1764322079517,3.8,142.05,142.04,3.33367098]
[1764322079918,11.12413979,142.05,142.04,3.33367098]
[1764322080336,4.08432314,142.05,142.04,3.33367098]
[1764322081438,4.08432314,142.05,142.03,3.33367098]
[1764322081635,0.98432314,142.04,142.03,3.33367098]
[1764322081858,0.98432314,142.04,141.97,0.2]
[1764322081859,0.28432314,142.02,141.97,0.2]
[1764322082059,3.1,142.01,142.0,3.33367098]
[1764322082257,3.8,142.01,142.0,3.33367098]
[1764322083333,3.8,142.01,142.0,10.3759245]
[1764322083734,3.1,142.01,142.0,10.3759245]
[1764322087639,0.7,142.06,142.0,10.5759245]
[1764322087840,3.1,142.05,142.01,0.2]
[1764322088759,10.20994492,142.08,142.03,16.308864]
[1764322088948,12.60994492,142.08,142.07,3.33367098]
[1764322089150,3.38432314,142.08,142.07,3.33367098]
[1764322089554,3.1,142.08,142.07,3.33367098]
[1764322089860,4.08432314,142.08,142.07,3.33367098]
[1764322090062,3.94216157,142.08,142.07,3.33367098]
[1764322090573,4.08432314,142.08,142.07,3.33367098]
[1764322093153,3.38432314,142.08,142.07,3.33367098]
[1764322093451,4.09432314,142.08,142.07,3.33367098]
[1764322098776,11.13261142,142.08,142.03,16.308864]
[1764322098976,3.38432314,142.08,142.07,3.33367098]
[1764322099270,19.23255634,142.08,142.07,3.33367098]
[1764322099479,19.94255634,142.08,142.07,3.33367098]
[1764322100193,0.28432314,142.07,142.06,3.33367098]
[1764322100394,0.99432314,142.07,142.06,3.33367098]
[1764322102483,0.99432314,142.07,142.06,3.33367098]
[1764322108671,0.99432314,142.07,142.06,2.13264218]
[1764322109677,16.84306433,142.07,142.05,2.13264218]
[1764322109998,0.28432314,142.05,141.97,0.2]
[1764322110201,0.28432314,142.02,142.0,2.13264218]
[1764322110380,3.1,142.01,141.96,8.53056872]
[1764322110581,3.81,142.01,142.0,2.13264218]
[1764322111195,3.81,142.01,142.0,9.1748957]
[1764322112074,3.1,142.01,142.0,9.1748957]
[1764322112281,3.81,142.01,142.0,2.13264218]
[1764322113176,4.09432314,142.01,142.0,2.13264218]
[1764322113378,12.90426806,142.01,142.0,2.13264218]
[1764322115381,4.09432314,142.01,142.0,2.13264218]
[1764322115586,3.38432314,142.01,142.0,2.13264218]
[1764322116515,3.38432314,142.01,142.0,9.1748957]
[1764322117508,2.37111537,142.01,142.0,9.1748957]
[1764322120129,2.37111537,142.01,142.0,2.13264218]
[1764322120330,3.08111537,142.01,142.0,9.1748957]
[1764322120621,2.08679223,142.01,142.0,9.1748957]
[1764322120828,2.08679223,142.01,142.0,9.3748957]
[1764322121007,2.08679223,142.01,142.0,9.1748957]
[1764322122011,2.74679223,142.01,142.0,2.13264218]
[1764322122213,2.74679223,142.01,142.0,9.1748957]
[1764322122427,2.08679223,142.01,142.0,9.1748957]
[1764322135438,2.74679223,142.01,142.0,9.1748957]
[1764322135638,2.08679223,142.01,142.0,9.1748957]
[1764322136462,2.08679223,142.01,142.0,9.3748957]
[1764322136665,2.08679223,142.01,142.0,9.1748957]
[1764322139360,2.74679223,142.01,141.99,7.04274948]
[1764322139545,2.08679223,142.01,142.0,2.13264218]
[1764322141763,2.08679223,142.01,142.0,9.1748957]
[1764322144862,2.74679223,142.01,142.0,9.1748957]
[1764322146461,2.08679223,142.01,142.0,9.1748957]
[1764322146757,2.74679223,142.01,142.0,9.1748957]
[1764322148140,2.08679223,142.01,142.0,9.1748957]
[1764322148650,2.74679223,142.01,142.0,9.1748957]
[1764322151855,2.08679223,142.01,142.0,9.3748957]
[1764322152273,2.08679223,142.01,142.0,9.1748957]
[1764322153193,2.75679223,142.01,142.0,9.1748957]
[1764322153676,0.67,142.01,142.0,9.1748957]
[1764322153856,0.67,142.01,141.98,0.2]
[1764322154060,0.67,142.01,142.0,2.13264218]
[1764322154249,2.8211729,142.07,142.0,18.44150618]
[1764322154450,0.67,142.07,142.06,2.13264218]
[1764322156275,0.67,142.07,142.05,7.03961157]
[1764322156578,0.81216157,142.07,142.05,7.03961157]
[1764322158183,3.24216157,142.08,142.06,2.13264218]
[1764322158356,3.38432314,142.08,142.07,2.13264218]
[1764322158884,3.1,142.08,142.07,2.13264218]
[1764322160488,3.1,142.08,142.07,9.17142587]
[1764322160988,3.77,142.08,142.07,9.17142587]
[1764322161959,3.1,142.08,142.07,9.17142587]
[1764322162364,3.1,142.08,142.07,2.13264218]
[1764322162595,3.1,142.08,142.07,9.17142587]
[1764322164982,3.77,142.08,142.07,9.17142587]
[1764322165895,3.77,142.08,142.06,7.03894596]
[1764322166100,3.77,142.08,142.07,2.13264218]
[1764322166886,3.77,142.08,142.07,9.17142587]
[1764322167376,3.77,142.08,142.07,2.13264218]
[1764322168183,4.05432314,142.08,142.07,2.13264218]
[1764322169799,3.91216157,142.08,142.07,2.13264218]
[1764322170586,3.91216157,142.08,142.07,3.33144201]
[1764322171280,3.77,142.08,142.07,3.33144201]
[1764322174407,4.05432314,142.08,142.07,10.3702257]
[1764322176702,3.77,142.08,142.07,10.3702257]
[1764322177899,3.1,142.08,142.07,10.3702257]
[1764322178086,3.77,142.08,142.07,10.3702257]
[1764322178898,3.1,142.08,142.07,10.3702257]
[1764322179627,0.95432314,142.1,142.07,27.96718494]
[1764322179830,0.95432314,142.1,142.09,3.33144201]
[1764322181916,3.1,142.11,142.09,10.36923495]
[1764322182104,4.07432314,142.11,142.1,3.33144201]
[1764322182622,0.89,142.14,142.1,6.86288402]
[1764322182825,2.38,142.14,142.13,3.33144201]
[1764322183329,3.07,142.14,142.13,3.33144201]
[1764322183808,3.35432314,142.14,142.13,3.33144201]
[1764322184004,3.21216157,142.14,142.13,3.33144201]
[1764322184432,3.35432314,142.14,142.13,3.33144201]
[1764322184924,4.27432314,142.14,142.13,3.33144201]
[1764322186821,0.28432314,142.13,142.12,3.33144201]
[1764322187129,0.97432314,142.13,142.12,3.33144201]
[1764322189831,8.01039705,142.13,142.08,16.308864]
[1764322190129,8.01039705,142.13,142.1,3.33144201]
[1764322190130,0.69,142.12,142.1,3.33144201]
[1764322190320,3.38432314,142.11,142.1,3.33144201]
[1764322190739,3.1,142.11,142.1,3.33144201]
[1764322191733,3.79,142.11,142.1,3.33144201]
[1764322194132,4.07432314,142.11,142.08,7.03828828]
[1764322194324,4.07432314,142.11,142.1,3.33144201]
[1764322195233,3.79,142.11,142.1,10.36873968]
[1764322198325,4.07432314,142.11,142.1,3.33144201]
[1764322198640,4.07432314,142.11,142.08,24.63340823]
[1764322198941,4.07432314,142.11,142.1,3.33144201]
[1764322200726,3.1,142.11,142.1,13.90018169]
[1764322200933,0.14216157,142.13,142.1,31.49342588]
[1764322201126,0.14216157,142.13,142.12,3.33144201]
[1764322201324,3.3,142.14,142.12,3.33144201]
[1764322201519,3.3,142.14,142.11,0.2]
[1764322201520,3.44216157,142.14,142.13,3.33144201]
[1764322201933,3.58432314,142.14,142.1,7.03729767]
[1764322202133,3.58432314,142.14,142.13,3.33144201]
[1764322203046,0.28432314,142.13,142.1,7.03701363]
[1764322203342,0.97432314,142.13,142.12,3.33144201]
[1764322203522,0.97432314,142.13,142.1,3.33144201]
[1764322203726,0.69,142.12,142.1,3.33144201]
[1764322204025,3.38432314,142.11,142.1,3.33144201]
[1764322204531,4.07432314,142.11,142.1,3.33144201]
[1764322205241,0.28432314,142.1,142.06,16.308864]
[1764322205447,0.69,142.09,142.05,7.23977472]
[1764322205622,0.69,142.09,142.08,3.33144201]
[1764322207027,0.69,142.09,142.08,10.36973029]
[1764322209052,0.97432314,142.1,142.08,10.36973029]
[1764322209258,0.97432314,142.1,142.09,3.33144201]
[1764322210044,3.79,142.13,142.09,3.53144201]
[1764322210252,3.3,142.14,142.12,3.33144201]
[1764322210572,3.96,142.14,142.13,3.33144201]
[1764322210749,3.3,142.14,142.13,10.36725429]
[1764322211146,3.96,142.14,142.13,10.36725429]